fUSD/lending_fUSD_20260305
["ID","MTS","AMOUNT","RATE_DAILY","PERIOD"]
[407742275,1772729432450,-350.0662126,0.00018304,2]
[407742276,1772729432459,-196.30944378,0.0001831,2]
[407742277,1772729432469,-300.0,0.00018318,2]
[407742278,1772729432480,-500.0,0.00018357,2]
[407742279,1772729432489,-200.0,0.00018357,2]
[407742280,1772729432499,-160.55109637,0.00018357,2]
[407742281,1772729432508,-151.0,0.00018357,2]
[407742282,1772729432518,-151.0,0.00018357,2]
[407742283,1772729432529,-258.20521433,0.00018357,2]
[407742284,1772729432538,-151.0,0.00018357,2]
[407742285,1772729432548,-151.0,0.00018357,2]
[407742286,1772729432559,-151.0,0.00018357,2]
[407742287,1772729432569,-151.0,0.00018357,2]
[407742288,1772729432579,-151.0,0.00018357,2]
[407742289,1772729432588,-151.0,0.00018357,2]
[407742290,1772729432599,-151.0,0.00018357,2]
[407742291,1772729432608,-151.0,0.00018357,2]
[407742292,1772729432617,-151.0,0.00018357,2]
[407742293,1772729432627,-151.0,0.00018357,2]
[407742294,1772729432636,-151.0,0.00018357,2]
[407742295,1772729432645,-151.0,0.00018357,2]
[407742296,1772729432655,-2000.0,0.00018367,2]
[407742297,1772729432664,-8958.24028749,0.00018368,2]
[407742298,1772729432674,-161.18,0.0001841,2]
[407742299,1772729432682,-151.0,0.00018412,2]
[407742300,1772729432692,-151.0,0.00018467,2]
[407742301,1772729432701,-151.0,0.00018522,2]
[407742302,1772729432711,-151.0,0.00018577,2]
[407742303,1772729432721,-4000.0,0.00018602,2]
[407742304,1772729432731,-161.18,0.0001868,2]
[407742305,1772729432740,-340.74910592,0.00018905,2]
[407742306,1772729432750,-161.18,0.0001895,2]
[407742307,1772729432760,-500.0,0.00018972,2]
[407742308,1772729432771,-4000.0,0.00019045,2]
[407742309,1772729432780,-735.93,0.00019092,2]
[407742310,1772729432790,-259.26,0.00019107,2]
[407742311,1772729432800,-161.18,0.0001922,2]
[407742312,1772729432809,-4000.0,0.00019488,2]
[407742313,1772729432819,-161.18,0.0001949,2]
[407742314,1772729432829,-1041.48276529,0.000195,6]
[407742315,1772729432839,-2740.06083211,0.000195,6]
[407742316,1772729432849,-2476.42593717,0.000195,6]
[407742317,1772729432858,-3003.69572713,0.000195,6]
[407742318,1772729432867,-261.0,0.00019574,2]
[407742319,1772729432876,-3485.5671,0.00019599,2]
[407742320,1772729432886,-5000.0,0.00019599,2]
[407742321,1772729432896,-4135.5197,0.00019599,2]
[407742322,1772729432906,-46044.31811983,0.00019599,2]
[407742323,1772729432918,-1834.78238017,0.00019599,2]
[407742324,1772729432928,-2500.0,0.00019599,2]
[407742325,1772729432937,-11003.59459441,0.00019599,2]
[407742326,1772729432947,-2490.55592067,0.00019638,2]
[407742327,1772729432958,-8442.66157152,0.00019638,2]
[407742328,1772729432967,-761.15917316,0.00019648,2]
[407742329,1772729432976,-167.80437869,0.00019689,2]
[407742330,1772729432986,-603.56,0.00019689,2]
[407742331,1772729432995,-603.56,0.00019689,2]
[407742332,1772729433004,-603.56,0.00019689,2]
[407742333,1772729433013,-603.56,0.00019689,2]
[407742334,1772729433022,-603.56,0.00019689,2]
[407742335,1772729433031,-151.0,0.00019696,2]
[407742336,1772729433040,-500.0,0.00019698,2]
[407742337,1772729433049,-500.0,0.00019698,2]
[407742338,1772729433058,-500.0,0.00019698,2]
[407742339,1772729433067,-500.0,0.00019698,2]
[407742340,1772729433076,-500.0,0.00019698,2]
[407742341,1772729433086,-500.0,0.00019698,2]
[407742342,1772729433096,-500.0,0.00019698,2]
[407742343,1772729433104,-500.0,0.00019698,2]
[407742344,1772729433113,-500.0,0.00019698,2]
[407742345,1772729433122,-500.0,0.00019698,2]
[407742346,1772729433131,-500.0,0.00019698,2]
[407742347,1772729433139,-533.65735292,0.00019698,2]
[407742348,1772729433148,-500.0,0.00019698,2]
[407742349,1772729433157,-500.0,0.00019698,2]
[407742350,1772729433166,-1036.32016175,0.00019698,5]
[407742351,1772729433175,-27504.67199104,0.00019699,2]
[407742352,1772729433186,-4327.47764801,0.00019699,2]
[407742353,1772729433569,-12899.95970412,0.00019699,2]
[407742354,1772729433584,-2000.00000001,0.00019699,2]
[407742355,1772729433595,-1168.26072013,0.00019699,2]
[407742356,1772729433606,-579.8497499,0.00019699,2]
[407742357,1772729433621,-1049.51166493,0.00019699,2]
[407742358,1772729433634,-60848.07182821,0.00019699,2]
[407742359,1772729433645,-1400.0,0.00019699,2]
[407742360,1772729433656,-1518.79195812,0.00019699,2]
[407742363,1772729438194,-825.89185212,0.00019699,2]
[407742364,1772729438209,-588.0,0.00019699,2]
[407742365,1772729438221,-3122.87040922,0.00019699,2]
[407742366,1772729438232,-104799.85116221,0.00019699,2]
[407742367,1772729438247,-292.37297749,0.00019699,2]
[407742368,1772729438258,-289.2021296,0.00019699,2]
[407742369,1772729438270,-8849.29004784,0.00019699,2]
[407742370,1772729438301,-2815.63138128,0.00019699,2]
[407742371,1772729438312,-690.45,0.00019699,2]
[407742372,1772729438355,-984.55747644,0.00019699,2]
[407742383,1772729440404,-506.00851436,0.00019699,2]
[407742384,1772729440458,-507.04547635,0.00019699,2]
[407742385,1772729440670,-253991.40470883,0.00019699,2]
[407742386,1772729440682,-57264.5980398,0.00019699,2]
[407742387,1772729440932,-317893.20802239,0.00019699,2]
[407742388,1772729440986,-8301.5470465,0.00019699,2]
[407742389,1772729441000,-400.0,0.00019699,2]
[407742404,1772729443338,-257518.2286911,0.00019699,2]
[407742405,1772729443348,-316.53328216,0.00019699,2]
[407742406,1772729443358,-620.01077933,0.00019699,2]
[407742407,1772729443368,-151.0,0.00019746,2]
[407742408,1772729443377,-666.0,0.00019748,2]
[407742409,1772729443386,-300.0,0.00019748,2]
[407742410,1772729443395,-666.0,0.00019748,2]
[407742411,1772729443405,-161.18,0.0001976,2]
[407742412,1772729443417,-1483.15594492,0.00019798,5]
[407742413,1772729443427,-3300.0,0.000198,7]
[407742414,1772729443436,-1000.0,0.000199,2]
[407742415,1772729443446,-6700.0,0.000199,7]
[407742416,1772729443455,-172.70211477,0.000199,7]
[407742417,1772729443465,-500.0,0.00019999,2]
[407742418,1772729443475,-500.0,0.00019999,2]
[407742419,1772729443484,-500.0,0.00019999,2]
[407742420,1772729443493,-500.0,0.00019999,2]
[407742421,1772729443504,-500.0,0.00019999,2]
[407742422,1772729443513,-500.0,0.00019999,2]
[407742423,1772729443522,-500.0,0.00019999,2]
[407742424,1772729443532,-500.0,0.00019999,2]
[407742425,1772729443541,-500.0,0.00019999,2]
[407742426,1772729443550,-500.0,0.00019999,2]
[407742427,1772729443559,-500.0,0.00019999,2]
[407742428,1772729443568,-500.0,0.00019999,2]
[407742429,1772729443578,-500.0,0.00019999,2]
[407742430,1772729443587,-500.0,0.00019999,2]
[407742431,1772729443596,-1372.12,0.0002,30]
[407742432,1772729443606,-161.18,0.0002003,2]
[407742433,1772729443616,-1403.89,0.00020059,2]
[407742434,1772729443625,-2351.0,0.00020092,2]
[407742435,1772729443634,-172.70211477,0.00020147,2]
[407742436,1772729443643,-160.0,0.00020147,2]
[407742437,1772729443652,-161.18,0.000203,2]
[407742438,1772729443661,-161.18,0.0002057,2]
[407742439,1772729443674,-283.5,0.00020659,2]
[407742440,1772729443684,-161.18,0.0002084,2]
[407742441,1772729443692,-161.18,0.0002111,2]
[407742442,1772729443702,-161.18,0.0002138,2]
[407742443,1772729443711,-500.0,0.00021477,2]
[407742444,1772729443720,-500.0,0.00021477,2]
[407742445,1772729443729,-571.75747747,0.00021549,7]
[407742446,1772729443739,-161.18,0.0002165,2]
[407742447,1772729443749,-500.0,0.00021773,2]
[407742448,1772729443758,-5000.0,0.00021918,2]
[407742449,1772729443768,-161.18,0.0002192,2]
[407742450,1772729443779,-2229.0,0.00022062,2]
[407742451,1772729443788,-161.18,0.0002219,2]
[407742452,1772729443797,-11003.59459437,0.00022287,2]
[407742453,1772729443807,-1403.89,0.00022288,2]
[407742454,1772729443816,-234.49195757,0.00022295,2]
[407742455,1772729443826,-500.0,0.00022366,2]
[407742456,1772729443835,-177.30883635,0.00022366,2]
[407742457,1772729443845,-293.63227034,0.00022366,2]
[407742458,1772729443854,-500.0,0.00022366,2]
[407742459,1772729443863,-500.0,0.00022366,2]
[407742460,1772729443872,-500.0,0.00022366,2]
[407742461,1772729443881,-500.0,0.00022366,2]
[407742462,1772729443890,-527.69120308,0.00022366,2]
[407742463,1772729443899,-500.0,0.00022366,2]
[407742464,1772729443909,-206.33724001,0.00022366,2]
[407742465,1772729443918,-481.49346716,0.00022366,2]
[407742466,1772729443928,-500.0,0.00022366,2]
[407742467,1772729443937,-500.0,0.00022366,2]
[407742468,1772729443947,-350.0,0.00022366,2]
[407742469,1772729443956,-500.0,0.00022366,2]
[407742470,1772729443966,-10933.21749212,0.00022367,2]
[407742471,1772729443976,-161.18,0.0002246,2]
[407742472,1772729443987,-637.05,0.00022466,30]
[407742473,1772729443998,-3834.0,0.000225,5]
[407742474,1772729444009,-161.18,0.0002273,2]
[407742475,1772729444018,-161.38,0.00023,2]
[407742476,1772729444027,-160.0,0.00023,2]
[407742477,1772729444037,-384.24742688,0.00023271,2]
[407742478,1772729444046,-481.83,0.00023272,2]
[407742479,1772729444059,-283.5,0.00023317,2]
[407742480,1772729444069,-1341.0,0.00023398,2]
[407742481,1772729444078,-619.0,0.00023398,2]
[407742482,1772729444087,-1041.0,0.00023398,2]
[407742483,1772729444097,-3563.617,0.00023398,2]
[407742484,1772729444106,-1278.0,0.00023398,2]
[407742485,1772729444115,-151.226,0.00023398,2]
[407742486,1772729444125,-3745.0,0.00023398,2]
[407742487,1772729444134,-2459.0,0.00023398,2]
[407742488,1772729444143,-5989.0,0.00023398,2]
[407742489,1772729444153,-481.83,0.00023546,2]
[407742490,1772729444162,-430.61,0.00023695,2]
[407742491,1772729444171,-263.07,0.0002382,2]
[407742492,1772729444180,-430.61,0.00024287,2]
[407742493,1772729444190,-1403.89,0.00024517,2]
[407742494,1772729444199,-500.0,0.00024574,2]
[407742495,1772729444208,-150.0,0.00024658,2]
[407742496,1772729444217,-430.62639236,0.00024879,2]
[407742497,1772729444226,-666.0,0.00024899,2]
[407742498,1772729444235,-666.0,0.00024899,2]
[407742499,1772729444245,-11003.59459437,0.00024975,2]
[407742500,1772729444254,-10933.21749212,0.00025096,2]
[407742501,1772729444264,-2000.0,0.000251,2]
[407742502,1772729444274,-270.08634337,0.00025137,2]
[407742503,1772729444283,-500.0,0.00025137,2]
[407742504,1772729444656,-500.0,0.00025137,2]
[407742505,1772729444667,-500.0,0.00025137,2]
[407742506,1772729444677,-500.0,0.00025137,2]
[407742507,1772729444686,-500.0,0.00025137,2]
[407742508,1772729444695,-500.0,0.00025137,2]
[407742510,1772729444705,-500.0,0.00025137,2]
[407742512,1772729444715,-500.0,0.00025237,120]
[407742513,1772729444724,-386.168942,0.00025412,30]
[407742514,1772729444733,-2236.94,0.00025593,2]
[407742515,1772729444743,-259.26,0.00025635,2]
[407742516,1772729444752,-150.0,0.000257,14]
[407742517,1772729444762,-150.0,0.0002589,2]
[407742518,1772729444771,-283.5,0.00025975,2]
[407742519,1772729444780,-151.0,0.00026395,7]
[407742520,1772729444790,-619.0,0.00026398,2]
[407742521,1772729444799,-3501.0,0.00026398,2]
[407742522,1772729444809,-1278.0,0.00026398,2]
[407742523,1772729444818,-5987.0,0.00026398,2]
[407742524,1772729444827,-1403.89,0.00026746,120]
[407742525,1772729444836,-150.0,0.00027185,2]
[407742526,1772729444846,-1509.96,0.00027347,2]
[407742527,1772729444856,-500.0,0.00027374,2]
[407742528,1772729444866,-1000.0,0.00027397,20]
[407742529,1772729444875,-14387.09,0.00027397,10]
[407742530,1772729444885,-500.0,0.0002745,120]
[407742531,1772729444895,-11003.59459437,0.00027663,2]
[407742532,1772729444905,-372.63,0.000278,7]
[407742533,1772729444915,-10933.21749212,0.00027825,2]
[407742534,1772729444924,-304.0,0.000284,2]
[407742535,1772729444934,-150.0,0.00028544,2]
[407742537,1772729444945,-230.23054003,0.00028625,7]
[407742538,1772729444955,-150.0,0.00028627,20]
[407742539,1772729444966,-300.0,0.00028627,10]
[407742540,1772729444976,-215819.8135842,0.00028628,2]
[407742541,1772729444985,-40239.6359379,0.00028628,2]
[407742542,1772729444997,-198.383807,0.00028628,7]
[407742543,1772729445006,-151.0,0.00028628,7]
[407742544,1772729445016,-151.0,0.00028628,7]
[407742545,1772729445025,-151.0,0.00028628,7]
[407742546,1772729445035,-269.952217,0.00028628,7]
[407742547,1772729445045,-269.952217,0.00028628,7]
[407742548,1772729445054,-269.952217,0.00028628,7]
[407742549,1772729445063,-269.952217,0.00028628,7]
[407742550,1772729445072,-151.0,0.00028628,7]
[407742551,1772729445082,-151.0,0.00028628,7]
[407742552,1772729445091,-151.0,0.00028628,7]
[407742553,1772729445100,-151.0,0.00028628,7]
[407742554,1772729445109,-151.0,0.00028628,7]
[407742555,1772729445119,-170.110374,0.00028628,7]
[407742556,1772729445128,-151.0,0.00028628,7]
[407742557,1772729445137,-151.0,0.00028628,7]
[407742558,1772729445147,-283.5,0.00028634,2]
[407742559,1772729445156,-192.108435,0.00028647,7]
[407742560,1772729445165,-2000.0,0.000288,2]
[407742561,1772729445175,-10000.0,0.000289,10]
[407742562,1772729445186,-300.0,0.00029008,10]
[407742563,1772729445195,-9999.99,0.00029009,2]
[407742564,1772729445204,-9999.99,0.00029009,2]
[407742565,1772729445214,-258.96,0.00029009,2]
[407742566,1772729445223,-350.18,0.00029009,2]
[407742567,1772729445232,-415.66,0.00029009,2]
[407742568,1772729445242,-9999.99,0.00029009,2]
[407742569,1772729445252,-9999.99,0.00029009,2]
[407742570,1772729445263,-14672.74,0.00029009,20]
[407742571,1772729445273,-1565.39,0.00029009,2]
[407742572,1772729445283,-299.99,0.00029009,12]
[407742573,1772729445292,-150.99,0.00029009,2]
[407742574,1772729445302,-9999.99,0.00029009,2]
[407742575,1772729445311,-1186.9,0.00029009,2]
[407742576,1772729445322,-248.59,0.00029199,2]
[407742577,1772729445332,-930.187,0.00029398,2]
[407742578,1772729445342,-3207.0,0.00029557,5]
[407742579,1772729445351,-2771.0,0.00029557,5]
[407742580,1772729445360,-500.0,0.00029573,5]
[407742581,1772729445369,-500.0,0.00029573,5]
[407742582,1772729445378,-500.0,0.00029573,5]
[407742583,1772729445389,-500.0,0.00029573,5]
[407742584,1772729445400,-500.0,0.00029573,5]
[407742585,1772729445413,-500.0,0.00029573,5]
[407742586,1772729445423,-500.0,0.00029573,5]
[407742587,1772729445432,-500.0,0.00029573,5]
[407742588,1772729445442,-500.0,0.00029573,5]
[407742589,1772729445452,-500.0,0.00029573,5]
[407742590,1772729445462,-497.07489125,0.00029573,5]
[407742591,1772729445471,-500.0,0.00029573,5]
[407742592,1772729445482,-500.0,0.00029573,3]
[407742593,1772729445492,-500.0,0.00029573,5]
[407742594,1772729445502,-500.0,0.00029573,2]
[407742595,1772729445512,-500.0,0.00029573,5]
[407742596,1772729445521,-500.0,0.00029573,5]
[407742597,1772729445530,-259.26,0.0002962,2]
[407742598,1772729445540,-500.0,0.00029664,120]
[407742599,1772729445550,-407.38,0.000298,14]
[407742600,1772729445560,-150.0,0.000301,32]
[407742601,1772729445570,-200.0,0.000301,2]
[407742602,1772729445579,-500.0,0.00030107,2]
[407742603,1772729445588,-500.64129663,0.00030121,5]
[407742604,1772729445598,-500.6605657,0.00030121,5]
[407742605,1772729445608,-1014.88410706,0.00030121,5]
[407742606,1772729445618,-1000.0,0.00030121,5]
[407742607,1772729445628,-500.0,0.00030121,5]
[407742608,1772729445637,-1000.0,0.00030121,5]
[407742609,1772729445647,-500.68664788,0.00030121,5]
[407742610,1772729445656,-444.56681159,0.00030121,5]
[407742611,1772729445667,-1000.0,0.00030121,5]
[407742612,1772729445687,-1000.0,0.00030121,5]
[407742613,1772729445699,-500.0,0.00030121,3]
[407742614,1772729445708,-1000.0,0.00030121,5]
[407742615,1772729445717,-500.63030831,0.00030121,5]
[407742616,1772729445726,-1000.0,0.00030121,2]
[407742617,1772729445735,-500.0,0.00030121,5]
[407742618,1772729445744,-1000.0,0.00030121,5]
[407742619,1772729445753,-200.0,0.00030121,15]
[407742620,1772729445762,-200.0,0.00030121,15]
[407742621,1772729445772,-200.0,0.0003013,2]
[407742622,1772729445781,-3028.82644144,0.00030137,2]
[407742623,1772729445790,-200.0,0.00030137,15]
[407742624,1772729445799,-200.0,0.00030137,15]
[407742625,1772729445808,-199.6208908,0.00030137,2]
[407742626,1772729445817,-151.0,0.00030137,2]
[407742627,1772729445826,-151.0,0.00030137,2]
[407742628,1772729445835,-500.0,0.00030175,2]
[407742629,1772729445844,-500.0,0.00030329,2]
[407742630,1772729445854,-11003.59459437,0.00030351,2]
[407742631,1772729445864,-195.97,0.00030411,120]
[407742632,1772729445873,-2917.0,0.00030511,5]
[407742633,1772729445883,-10933.21749212,0.00030554,2]
[407742634,1772729445892,-151.0,0.00030668,7]
[407742635,1772729445902,-151.0,0.00030668,7]
[407742636,1772729445911,-151.0,0.00030668,7]
[407742637,1772729445920,-151.0,0.00030668,7]
[407742638,1772729445929,-1500.0,0.00030668,5]
[407742639,1772729445938,-1500.0,0.00030668,5]
[407742640,1772729445948,-1500.0,0.00030668,5]
[407742641,1772729445958,-1500.0,0.00030668,5]
[407742643,1772729445967,-1500.0,0.00030668,5]
[407742645,1772729445976,-1500.0,0.00030668,2]
[407742647,1772729445985,-1500.0,0.00030668,5]
[407742649,1772729445995,-182.98788249,0.00031,30]
[407742651,1772729446004,-372.63,0.00031,7]
[407742653,1772729446014,-150.0,0.000311,35]
[407742656,1772729446023,-161.59,0.0003111,2]
[407742658,1772729446032,-1852.42,0.00031129,2]
[407742659,1772729446042,-151.0,0.00031139,7]
[407742660,1772729446051,-2000.0,0.00031216,5]
[407742661,1772729446060,-2000.0,0.00031216,5]
[407742662,1772729446069,-2000.0,0.00031216,5]
[407742663,1772729446078,-2000.0,0.00031216,5]
[407742664,1772729446087,-2000.0,0.00031216,5]
[407742665,1772729446097,-2000.0,0.00031216,2]
[407742666,1772729446106,-2000.0,0.00031216,5]
[407742667,1772729446116,-283.5,0.00031292,2]
[407742668,1772729446125,-168.0,0.00031353,2]
[407742669,1772729446134,-3185.82359043,0.00031534,36]
[407742670,1772729446143,-269.952217,0.00031673,7]
[407742671,1772729446152,-269.952217,0.00031673,7]
[407742672,1772729446162,-269.952217,0.00031673,7]
[407742673,1772729446171,-269.952217,0.00031673,7]
[407742674,1772729446183,-168.0,0.00031696,2]
[407742675,1772729446192,-300.0,0.00031749,10]
[407742676,1772729446201,-151.0,0.0003175,7]
[407742677,1772729446211,-151.0,0.0003175,7]
[407742678,1772729446220,-32898.3261,0.0003175,2]
[407742679,1772729446229,-500.0,0.00031764,120]
[407742680,1772729446239,-2500.0,0.00031764,5]
[407742681,1772729446248,-2500.0,0.00031764,5]
[407742682,1772729446257,-1001.8526055,0.00031764,5]
[407742683,1772729446267,-2308.9330265,0.00031764,5]
[407742684,1772729446276,-2500.0,0.00031764,5]
[407742685,1772729446287,-1509.43038978,0.00031764,2]
[407742686,1772729446296,-1642.64793153,0.00031764,5]
[407742687,1772729446306,-500.0,0.00031849,120]
[407742688,1772729446315,-500.0,0.00031849,120]
[407742689,1772729446324,-500.0,0.00031849,120]
[407742690,1772729446334,-500.0,0.00031849,120]
[407742691,1772729446343,-574.76673505,0.00031849,30]
[407742692,1772729446352,-500.0,0.00031849,120]
[407742693,1772729446362,-500.0,0.00031849,120]
[407742694,1772729446372,-300.0,0.00031849,10]
[407742695,1772729446381,-180478.0,0.0003185,20]
[407742696,1772729446390,-151.0,0.0003185,7]
[407742697,1772729446399,-151.0,0.0003185,7]
[407742698,1772729446412,-151.0,0.0003185,7]
[407742699,1772729446421,-151.0,0.0003185,7]
[407742700,1772729446430,-269.952217,0.0003185,7]
[407742701,1772729446440,-269.952217,0.0003185,7]
[407742703,1772729446452,-269.952217,0.0003185,7]
[407742705,1772729446461,-269.952217,0.0003185,7]
[407742706,1772729446472,-151.0,0.0003185,7]
[407742707,1772729446485,-151.0,0.0003185,7]
[407742708,1772729446495,-151.0,0.0003185,7]
[407742709,1772729446505,-151.0,0.0003185,7]
[407742710,1772729446515,-300.0,0.00031999,10]
[407742711,1772729446524,-39113.43278205,0.00032,120]
[407742712,1772729446534,-160.0,0.00032,120]
[407742713,1772729446543,-160.0,0.00032,120]
[407742714,1772729446551,-160.0,0.00032,120]
[407742715,1772729446560,-1022.14,0.00032,120]
[407742716,1772729446569,-150.0,0.000321,38]
[407742717,1772729446579,-8978.6764111,0.00032254,2]
[407742718,1772729446588,-1930.98096624,0.00032312,5]
[407742719,1772729446597,-3000.0,0.00032312,5]
[407742720,1772729446607,-3000.0,0.00032312,5]
[407742721,1772729446616,-48155.9095682,0.0003243,2]
[407742722,1772729446625,-2000.0,0.000325,2]
[407742723,1772729446634,-372.63,0.000327,7]
[407742724,1772729446643,-152.98792199,0.000328,13]
[407742725,1772729446653,-1000.0,0.00032859,2]
[407742726,1772729446663,-3500.0,0.0003286,5]
[407742727,1772729446672,-3500.0,0.0003286,5]
[407742728,1772729446682,-500.0,0.00032889,120]
[407742729,1772729446691,-500.0,0.00032889,120]
[407742730,1772729446701,-306.66567775,0.00032889,120]
[407742731,1772729446712,-500.0,0.00032889,120]
[407742732,1772729446723,-500.0,0.00032889,120]
[407742733,1772729446732,-180478.0,0.000329,20]
[407742734,1772729446741,-151.0,0.000329,7]
[407742735,1772729446751,-151.0,0.000329,7]
[407742736,1772729446760,-288.971144,0.000329,7]
[407742737,1772729446770,-269.952217,0.000329,7]
[407742738,1772729446779,-269.952217,0.000329,7]
[407742739,1772729446788,-269.952217,0.000329,7]
[407742740,1772729446798,-269.952217,0.000329,7]
[407742741,1772729446807,-13400.0,0.000329,12]
[407742742,1772729446816,-151.0,0.000329,7]
[407742743,1772729446825,-151.0,0.000329,7]
[407742744,1772729446834,-151.0,0.000329,7]
[407742745,1772729446843,-300.201007,0.000329,7]
[407742746,1772729446853,-161.59,0.0003294,2]
[407742747,1772729446863,-508.51876343,0.00032976,2]
[407742748,1772729446872,-150.0,0.00033,14]
[407742749,1772729446881,-11003.59459437,0.00033038,2]
[407742750,1772729446891,-2003.4135055,0.00033063,2]
[407742751,1772729446900,-9000.0,0.00033165,2]
[407742752,1772729446909,-500.0,0.00033165,2]
[407742753,1772729446919,-500.0,0.00033165,2]
[407742754,1772729446928,-151.0,0.00033165,2]
[407742755,1772729446937,-500.0,0.00033165,2]
[407742756,1772729446947,-151.0,0.00033165,2]
[407742757,1772729446956,-721.12765535,0.00033165,2]
[407742758,1772729446965,-500.0,0.00033165,2]
[407742759,1772729446974,-151.0,0.00033165,2]
[407742760,1772729446984,-500.0,0.00033165,2]
[407742761,1772729446994,-300.0,0.00033165,2]
[407742762,1772729447003,-500.0,0.00033165,2]
[407742763,1772729447013,-3377.00915946,0.00033165,2]
[407742764,1772729447022,-300.0,0.00033165,2]
[407742765,1772729447032,-500.0,0.00033165,2]
[407742766,1772729447041,-305.95163096,0.00033165,2]
[407742767,1772729447050,-500.0,0.00033165,2]
[407742768,1772729447060,-500.0,0.00033165,2]
[407742769,1772729447069,-500.0,0.00033165,2]
[407742770,1772729447078,-500.0,0.00033165,2]
[407742771,1772729447088,-151.0,0.00033165,2]
[407742772,1772729447097,-174.61919141,0.00033165,2]
[407742773,1772729447106,-578.20924308,0.00033165,2]
[407742774,1772729447116,-693.3919763,0.00033165,2]
[407742775,1772729447125,-270.94567741,0.00033165,2]
[407742776,1772729447134,-500.0,0.00033165,2]
[407742777,1772729447144,-500.0,0.00033165,2]
[407742778,1772729447153,-500.0,0.00033165,2]
[407742779,1772729447162,-217.15233878,0.00033165,2]
[407742780,1772729447172,-500.0,0.00033165,2]
[407742781,1772729447181,-500.0,0.00033165,2]
[407742782,1772729447190,-500.0,0.00033165,2]
[407742783,1772729447200,-250.0,0.00033165,2]
[407742784,1772729447208,-500.0,0.00033165,2]
[407742785,1772729447218,-250.0,0.00033165,2]
[407742786,1772729447227,-500.0,0.00033165,2]
[407742787,1772729447236,-500.0,0.00033165,2]
[407742788,1772729447245,-250.0,0.00033165,2]
[407742789,1772729447254,-250.0,0.00033165,2]
[407742790,1772729447264,-500.0,0.00033165,2]
[407742791,1772729447273,-250.0,0.00033165,2]
[407742792,1772729447282,-500.0,0.00033165,2]
[407742793,1772729447291,-311.11875681,0.00033165,2]
[407742794,1772729447300,-250.0,0.00033165,2]
[407742795,1772729447309,-250.0,0.00033165,2]
[407742796,1772729447318,-693.3919763,0.00033165,2]
[407742797,1772729447327,-151.0,0.00033165,2]
[407742798,1772729447336,-500.0,0.00033165,2]
[407742799,1772729447346,-209.40437684,0.00033165,2]
[407742800,1772729447355,-500.0,0.00033165,2]
[407742801,1772729447364,-500.0,0.00033165,2]
[407742802,1772729447374,-500.0,0.00033165,2]
[407742803,1772729447383,-1000.0,0.00033165,2]
[407742804,1772729447392,-500.0,0.00033165,2]
[407742805,1772729447401,-500.0,0.00033165,2]
[407742806,1772729447415,-250.0,0.00033165,2]
[407742807,1772729447424,-262.90206542,0.00033165,2]
[407742808,1772729447433,-1000.0,0.00033165,2]
[407742809,1772729447443,-1000.0,0.00033165,2]
[407742810,1772729447452,-1000.0,0.00033165,2]
[407742811,1772729447462,-1000.0,0.00033165,2]
[407742812,1772729447471,-1000.0,0.00033165,2]
[407742813,1772729447482,-1000.0,0.00033165,2]
[407742814,1772729447491,-269.917619,0.00033165,2]